bitfinex/quotes_BTCUSD_20251029
["timestamp","ask_amount","ask_price","bid_price","bid_amount"]
[1761745039373,4.71551201,113380.0,113370.0,1e-08]
[1761745039537,4.73934599,113380.0,113370.0,1e-08]
[1761745039766,3.71642907,113360.0,113350.0,0.0004]
[1761745039971,4.66723504,113360.0,113350.0,0.0004]
[1761745040224,5.479733,113360.0,113350.0,0.00082318]
[1761745040463,5.6480674,113360.0,113350.0,0.00082318]
[1761745040668,4.94253562,113360.0,113350.0,0.00082318]
[1761745040871,4.22197642,113350.0,113340.0,0.00448]
[1761745041086,4.51486891,113350.0,113340.0,0.00448]
[1761745041294,0.7164602,113340.0,113330.0,0.00053234]
[1761745041521,4.67922888,113340.0,113330.0,4.822e-05]
[1761745041756,5.14392888,113340.0,113330.0,4.822e-05]
[1761745041979,4.39749939,113340.0,113330.0,4.822e-05]
[1761745042183,5.18285019,113340.0,113330.0,4.822e-05]
[1761745042391,5.19285018,113340.0,113330.0,4.822e-05]
[1761745043082,4.42202313,113320.0,113310.0,0.0004]
[1761745043294,4.42202313,113320.0,113310.0,0.00044825]
[1761745043295,4.42474834,113320.0,113310.0,0.00044825]
[1761745043502,4.40105118,113320.0,113310.0,0.00044825]
[1761745043739,0.5165225,113300.0,113290.0,0.05347455]
[1761745043958,0.5165225,113300.0,113290.0,0.05395746]
[1761745044163,0.5165225,113300.0,113290.0,0.07815746]
[1761745044413,0.1765225,113300.0,113290.0,0.07815746]
[1761745044627,3.0,113300.0,113290.0,0.25469554]
[1761745044831,0.1765225,113300.0,113290.0,0.25469554]
[1761745045057,3.0,113300.0,113290.0,0.34451455]
[1761745045274,0.18931591,113320.0,113300.0,0.19871387]
[1761745045495,3.0,113310.0,113300.0,0.21297387]
[1761745045708,0.004,113320.0,113310.0,0.25726692]
[1761745045916,0.004,113320.0,113310.0,0.17057901]
[1761745046334,0.18049135,113320.0,113310.0,0.17057901]
[1761745046535,0.25018813,113320.0,113310.0,0.17057901]
[1761745046752,0.24618813,113320.0,113310.0,0.0423]
[1761745046979,3.0,113300.0,113290.0,0.05395746]
[1761745047182,0.1765225,113300.0,113290.0,0.05395746]
[1761745047389,0.1765225,113300.0,113290.0,0.04096778]
[1761745047610,0.26634151,113300.0,113290.0,0.04096778]
[1761745047823,3.26634151,113300.0,113290.0,0.04096778]
[1761745048035,3.26634151,113300.0,113290.0,0.07942778]
[1761745048271,3.1765225,113300.0,113290.0,0.25596586]
[1761745048932,3.1765225,113300.0,113290.0,0.08042778]
[1761745049363,3.5165225,113300.0,113290.0,0.08042778]
[1761745049604,4.24017428,113300.0,113290.0,0.00275323]
[1761745049819,4.34889927,113300.0,113290.0,0.00275323]
[1761745050053,4.36701927,113300.0,113290.0,0.00275323]
[1761745050276,3.66348749,113300.0,113290.0,0.00275323]
[1761745050524,4.36901927,113300.0,113290.0,0.00275323]
[1761745050749,4.36901927,113300.0,113290.0,1e-08]
[1761745050750,5.22295902,113300.0,113290.0,1e-08]
[1761745050972,5.23148357,113300.0,113290.0,1e-08]
[1761745051202,3.17656925,113270.0,113260.0,0.004]
[1761745051438,4.43876503,113270.0,113260.0,0.004]
[1761745051651,4.72158503,113270.0,113260.0,0.004]
[1761745051864,4.78988427,113270.0,113260.0,0.004]
[1761745052060,4.78988427,113270.0,113220.0,0.02942625]
[1761745052061,0.34,113230.0,113220.0,0.02942625]
[1761745052311,3.51661603,113240.0,113230.0,0.0181]
[1761745052522,0.51661603,113240.0,113230.0,0.0423]
[1761745052736,0.34,113240.0,113230.0,0.0373]
[1761745052944,3.17660065,113250.0,113230.0,0.3598738]
[1761745053155,0.19474965,113260.0,113240.0,0.29063504]
[1761745053360,0.17662965,113260.0,113250.0,0.0242]
[1761745053575,0.5768883,113270.0,113250.0,0.23925929]
[1761745053786,0.17658484,113260.0,113250.0,0.06266]
[1761745054006,0.17658484,113260.0,113250.0,0.03846]
[1761745054228,0.17658484,113260.0,113250.0,0.06266]
[1761745054442,0.25820309,113260.0,113250.0,0.0242]
[1761745054657,0.27352846,113270.0,113250.0,0.06266]
[1761745054872,0.78126975,113270.0,113260.0,0.0423]
[1761745055295,0.80221975,113270.0,113260.0,0.0181]
[1761745055505,0.17659203,113260.0,113240.0,0.31369826]
[1761745055740,1.22212381,113260.0,113250.0,0.001]
[1761745055977,4.33589282,113260.0,113250.0,0.001]
[1761745056186,3.63036104,113260.0,113250.0,0.00108532]
[1761745056399,0.51658484,113260.0,113250.0,0.02528532]
[1761745056655,0.51658484,113260.0,113250.0,0.00108532]
[1761745056656,4.3786549,113260.0,113250.0,0.00108532]
[1761745056858,4.8518549,113260.0,113250.0,0.00108532]
[1761745057090,4.94367391,113260.0,113250.0,0.00108532]
[1761745057344,4.94167391,113260.0,113250.0,0.00093272]
[1761745057751,4.96526038,113260.0,113250.0,0.00093272]
[1761745058082,4.96726038,113260.0,113250.0,0.00093272]
[1761745058279,4.76726038,113260.0,113250.0,0.00093272]
[1761745058529,4.6279049,113260.0,113250.0,0.00093272]
[1761745058728,4.51413589,113260.0,113250.0,0.02569272]
[1761745058902,4.6518549,113260.0,113250.0,0.00093272]
[1761745059106,4.87544137,113260.0,113250.0,0.00093272]
[1761745059316,5.00144266,113260.0,113250.0,0.00093272]
[1761745059895,4.63785619,113260.0,113250.0,0.00093272]
[1761745060096,4.66444266,113260.0,113250.0,0.00093272]
[1761745060697,4.53844137,113260.0,113250.0,0.00093272]
[1761745061120,4.37462365,113260.0,113250.0,0.00093272]
[1761745061381,4.57462365,113260.0,113250.0,0.00093272]
[1761745061562,4.57162365,113260.0,113250.0,0.00093272]
[1761745061883,4.57562365,113260.0,113250.0,0.00093272]
[1761745062080,4.65991243,113260.0,113250.0,0.00093272]
[1761745062294,4.86793765,113260.0,113250.0,0.00093272]
[1761745062726,4.63649727,113260.0,113250.0,0.00093272]
[1761745062965,4.61254727,113260.0,113250.0,0.00093272]
[1761745063191,4.18272826,113260.0,113250.0,0.00093272]
[1761745063421,4.63649727,113260.0,113250.0,0.00093272]
[1761745063623,4.87267955,113260.0,113250.0,0.00093272]
[1761745063842,4.98608503,113260.0,113250.0,0.00093272]
[1761745064057,5.01263763,113260.0,113250.0,0.00093272]
[1761745064296,3.157274,113230.0,113220.0,0.02942625]
[1761745064510,4.01934406,113230.0,113220.0,0.02951158]
[1761745064745,4.10916307,113230.0,113220.0,0.03014741]
[1761745065377,4.11766307,113230.0,113220.0,0.03014741]
[1761745065587,4.61854535,113230.0,113220.0,0.03014741]
[1761745065807,4.64205927,113230.0,113220.0,0.03014741]
[1761745066023,4.64405927,113230.0,113220.0,0.03114741]
[1761745066664,4.98405927,113230.0,113220.0,0.03114741]
[1761745067562,3.86285259,113200.0,113190.0,8e-05]
[1761745067784,4.06644061,113200.0,113190.0,0.00020777]
[1761745068226,3.24713982,113200.0,113190.0,0.00020777]
[1761745068428,3.27108982,113200.0,113190.0,0.00020777]
[1761745068638,3.29503982,113200.0,113190.0,0.00020777]
[1761745068846,4.0005716,113200.0,113190.0,0.00020777]
[1761745069046,4.0035716,113200.0,113190.0,0.00120777]
[1761745069276,4.09339061,113200.0,113190.0,0.00120777]
[1761745069414,4.43339061,113200.0,113190.0,0.00120777]
[1761745070155,3.61408982,113200.0,113190.0,0.00120777]
[1761745071116,3.87878982,113200.0,113190.0,0.00120777]
[1761745071564,3.76502081,113200.0,113190.0,0.06375777]
[1761745071773,0.2677,113200.0,113190.0,0.24045182]
[1761745072209,0.44437844,113200.0,113190.0,0.24045182]
[1761745072464,0.50698393,113200.0,113190.0,0.06375777]
[1761745072683,0.2677,113200.0,113190.0,0.24045182]
[1761745072895,0.2677,113200.0,113190.0,0.33027083]
[1761745073113,0.2677,113200.0,113190.0,1.03580261]
[1761745073332,0.2677,113200.0,113190.0,1.07198489]
[1761745073333,0.003,113200.0,113190.0,1.07198489]
[1761745073569,0.003,113200.0,113190.0,1.07262097]
[1761745074249,0.003,113200.0,113190.0,0.36708919]
[1761745074479,0.003,113200.0,113190.0,0.36908919]
[1761745074627,0.16376944,113220.0,113210.0,0.17666283]
[1761745074857,0.19396421,113230.0,113210.0,0.20142283]
[1761745075071,0.19396421,113230.0,113220.0,0.23919723]
[1761745075072,0.0085,113230.0,113220.0,0.23919723]
[1761745075332,0.18513163,113230.0,113220.0,0.06255]
[1761745075655,0.0085,113230.0,113220.0,0.23919723]
[1761745076064,0.53546178,113240.0,113230.0,0.17663163]
[1761745076286,0.53546178,113240.0,113230.0,0.08027]
[1761745076488,0.01883194,113240.0,113230.0,0.25690163]
[1761745076689,3.0,113240.0,113230.0,0.25690163]
[1761745077098,0.17780427,113260.0,113240.0,0.17661603]
[1761745077339,0.17780427,113260.0,113250.0,0.02476]
[1761745077750,0.17780427,113260.0,113250.0,0.02276]
[1761745077946,0.17780376,113260.0,113250.0,0.19936044]
[1761745078462,0.17660044,113250.0,113240.0,0.2144028]
[1761745078676,0.17660044,113250.0,113240.0,0.17961603]
[1761745078877,0.17660044,113250.0,113240.0,0.23916603]
[1761745080453,0.018909,113250.0,113240.0,0.23916603]
[1761745080920,0.018909,113250.0,113240.0,0.32898504]
[1761745081149,0.19650944,113250.0,113240.0,0.33198504]
[1761745081372,0.21618074,113250.0,113240.0,0.17961603]
[1761745081592,3.58029074,113250.0,113240.0,0.003]
[1761745081809,4.45667641,113250.0,113240.0,0.003]
[1761745082025,4.63304016,113250.0,113240.0,0.004]
[1761745082256,4.68021311,113250.0,113240.0,0.004]
[1761745082473,4.66518401,113250.0,113240.0,0.004]
[1761745082745,4.91238401,113250.0,113240.0,0.004]
[1761745082974,4.20585223,113250.0,113240.0,0.001]
[1761745083196,0.4830676,113250.0,113240.0,0.02476]
[1761745083411,3.56798686,113250.0,113240.0,0.02476]
[1761745083845,3.56798686,113250.0,113240.0,0.23916603]
[1761745083846,0.56798686,113250.0,113240.0,0.23916603]
[1761745084065,0.22798686,113250.0,113240.0,0.06255]
[1761745084284,0.22798686,113250.0,113240.0,0.23916603]
[1761745084499,0.20433946,113250.0,113240.0,0.06255]
[1761745084710,0.30571876,113250.0,113240.0,0.02476]
[1761745084953,0.22798686,113250.0,113240.0,0.23916603]
[1761745085174,0.22798686,113250.0,113240.0,0.06255]
[1761745085395,0.23198686,113250.0,113240.0,0.20237603]
[1761745085611,0.0425564,113250.0,113240.0,0.23916603]
[1761745085825,0.24326684,113250.0,113220.0,0.1854794]
[1761745086051,0.17663163,113230.0,113220.0,0.00012777]
[1761745086268,0.19554063,113230.0,113220.0,0.02488777]
[1761745086698,0.21965063,113230.0,113220.0,0.00012777]
[1761745087327,4.24405897,113230.0,113220.0,0.00012777]
[1761745087538,4.32064856,113230.0,113220.0,0.00012777]
[1761745087789,3.83952564,113230.0,113220.0,0.00012777]
[1761745088006,3.60714762,113230.0,113220.0,0.06529777]
[1761745088227,0.018909,113230.0,113220.0,0.81388693]
[1761745088451,0.19554063,113230.0,113220.0,0.81288693]
[1761745088679,0.018909,113230.0,113220.0,0.81288693]
[1761745088909,0.021909,113230.0,113220.0,0.242945]
[1761745089130,0.17963163,113230.0,113220.0,0.33276401]
[1761745089340,0.19856442,113230.0,113220.0,0.35201401]
[1761745089760,0.02193279,113230.0,113220.0,0.35201401]
[1761745089991,0.19948661,113230.0,113220.0,0.35201401]
[1761745090193,0.02285498,113230.0,113220.0,0.35201401]
[1761745090407,0.17663163,113230.0,113220.0,0.35201401]
[1761745090609,0.1955498,113240.0,113220.0,0.35201401]
[1761745090838,0.1955498,113240.0,113230.0,0.06517]
[1761745091060,0.1955498,113240.0,113230.0,0.92022573]
[1761745091061,0.01893279,113240.0,113230.0,0.92022573]
[1761745091268,3.01893279,113250.0,113240.0,0.17661603]
[1761745091469,0.01893279,113250.0,113240.0,0.90037697]
[1761745091689,0.22038482,113260.0,113240.0,0.90037697]
[1761745091881,0.20495031,113260.0,113250.0,0.04394]
[1761745092092,0.20495031,113260.0,113250.0,0.08128]
[1761745092743,0.20494944,113260.0,113250.0,0.25688044]
[1761745092957,0.02015171,113260.0,113250.0,0.82782237]
[1761745093168,0.00121892,113260.0,113250.0,0.82782237]
[1761745093384,0.00121892,113260.0,113250.0,0.91764138]
[1761745093592,0.00321892,113260.0,113250.0,0.95482366]
[1761745094256,0.00321892,113260.0,113250.0,1.86576559]
[1761745094468,0.00321892,113260.0,113250.0,1.87576558]
[1761745095597,0.00121892,113260.0,113250.0,1.87476558]
[1761745095808,0.00121892,113260.0,113250.0,1.88476557]
[1761745096024,0.00221892,113260.0,113250.0,1.88676557]
[1761745096235,0.00221892,113260.0,113250.0,1.88876557]
[1761745096441,0.00121892,113260.0,113250.0,1.88676557]
[1761745096672,0.01891253,113320.0,113300.0,0.1765225]
[1761745096879,0.18469207,113320.0,113310.0,0.02466]
[1761745097094,0.00820072,113320.0,113310.0,0.81044885]
[1761745097305,3.0,113330.0,113320.0,0.17649135]
[1761745097513,0.1846703,113330.0,113320.0,0.08228]
[1761745097738,0.18615231,113330.0,113320.0,0.08228]
[1761745097996,0.18663444,113330.0,113320.0,0.08228]
[1761745098642,0.22383635,113330.0,113320.0,0.04394]
[1761745098860,0.17650692,113310.0,113300.0,0.01928]
[1761745099084,0.17649135,113320.0,113310.0,0.03834]
[1761745099307,0.17649135,113320.0,113310.0,0.33032593]
[1761745099308,0.001,113320.0,113310.0,0.33032593]
[1761745099527,0.18578168,113330.0,113310.0,0.90026786]
[1761745099753,0.00048213,113330.0,113320.0,0.23949135]
[1761745099969,0.00148213,113330.0,113320.0,0.33031036]
[1761745100188,0.00148213,113330.0,113320.0,0.90125229]
[1761745100397,0.00048213,113330.0,113320.0,0.90025229]
[1761745100625,0.00048213,113330.0,113270.0,0.01928]
[1761745100626,0.17654914,113300.0,113270.0,0.01928]
[1761745100842,0.17654914,113300.0,113270.0,0.05762]
[1761745100843,0.1924029,113290.0,113270.0,0.05762]
[1761745101047,0.56068087,113300.0,113290.0,0.04394]
[1761745101477,0.56068087,113300.0,113290.0,0.08228]
[1761745101478,0.52537526,113300.0,113290.0,0.08228]
[1761745102186,0.52585739,113300.0,113290.0,0.08228]
[1761745103270,0.52685739,113300.0,113290.0,0.08328]
[1761745103835,0.52685739,113300.0,113290.0,0.04494]
[1761745104273,0.34148213,113300.0,113290.0,0.04494]
[1761745104481,0.60785017,113300.0,113290.0,0.04494]
[1761745104663,0.63356017,113300.0,113290.0,0.02028]
[1761745104866,3.0,113250.0,113220.0,0.02049915]
[1761745105070,0.7783287,113250.0,113220.0,0.05883915]
[1761745105307,0.7783287,113250.0,113240.0,0.02466]
[1761745105308,0.18544605,113250.0,113240.0,0.02466]
[1761745105516,0.18544527,113260.0,113240.0,0.02466]
[1761745105770,0.17660044,113250.0,113240.0,0.0176616]
[1761745106019,0.17661693,113240.0,113220.0,0.86673817]
[1761745106224,0.17661693,113240.0,113230.0,0.30479064]
[1761745106433,0.17760044,113250.0,113230.0,0.32945064]
[1761745106640,0.17661603,113240.0,113230.0,0.063]
[1761745106844,0.21390501,113250.0,113240.0,0.02466]
[1761745106845,0.17660044,113250.0,113240.0,0.02466]
[1761745107049,0.17760044,113250.0,113240.0,0.03066]
[1761745107254,0.17760044,113250.0,113240.0,0.069]
[1761745108529,0.17660044,113250.0,113240.0,0.02566]
[1761745108948,0.17760044,113250.0,113240.0,0.02566]
[1761745109179,0.17760044,113250.0,113240.0,0.064]
[1761745109383,0.17660044,113250.0,113240.0,0.064]
[1761745109636,0.17760044,113250.0,113240.0,0.24661603]
[1761745111118,0.001,113250.0,113240.0,0.81755796]
[1761745111338,0.001,113250.0,113240.0,0.90737697]
[1761745113545,0.001,113250.0,113240.0,0.007]
[1761745113546,1.15102237,113250.0,113240.0,0.007]
[1761745113772,4.24084138,113250.0,113240.0,0.007]
[1761745114659,4.33066039,113250.0,113240.0,0.007]
[1761745115082,4.33066039,113250.0,113240.0,0.006]
[1761745115354,3.75971846,113250.0,113240.0,0.006]
[1761745115591,4.33066039,113250.0,113240.0,0.006]
[1761745116238,4.33066039,113250.0,113220.0,0.00134692]
[1761745116239,0.17663163,113230.0,113220.0,0.00134692]
[1761745116450,0.23766779,113230.0,113220.0,0.00134692]
[1761745116887,0.17663163,113230.0,113220.0,0.02600692]
[1761745117994,0.17763163,113230.0,113220.0,0.24617169]
[1761745118220,0.001,113230.0,113220.0,0.24617169]
[1761745118413,0.001,113230.0,113220.0,0.81711362]
[1761745118865,0.001,113230.0,113220.0,0.24617169]
[1761745119079,0.001,113230.0,113220.0,0.81711362]
[1761745119294,0.001,113230.0,113220.0,0.90793263]
[1761745119503,0.17663163,113230.0,113220.0,0.90293263]
[1761745119705,0.17863163,113230.0,113220.0,0.90993263]
[1761745119932,0.002,113230.0,113220.0,0.90993263]
[1761745120618,0.002,113230.0,113220.0,1.28611491]
[1761745121157,0.002,113230.0,113220.0,1.2961149]
[1761745121363,0.002,113230.0,113220.0,0.72517297]
[1761745121577,0.002,113230.0,113220.0,1.2961149]
[1761745121991,0.002,113230.0,113220.0,1.2951149]
[1761745122604,0.00021184,113270.0,113260.0,0.17658484]
[1761745122869,0.17678109,113270.0,113260.0,0.22196484]
[1761745123107,0.27183733,113270.0,113260.0,0.01955]
[1761745123339,0.24699733,113270.0,113260.0,0.01955]
[1761745124011,0.24699733,113270.0,113260.0,0.04538]
[1761745124251,3.88134926,113270.0,113260.0,0.005]
[1761745124464,0.32873733,113270.0,113260.0,0.005]
[1761745124697,0.41855634,113270.0,113260.0,0.005]
[1761745124984,1.32949827,113270.0,113260.0,0.005]
[1761745125666,0.17660044,113250.0,113240.0,0.22396649]
[1761745125874,0.17659883,113260.0,113240.0,0.75638842]
[1761745126079,0.17659883,113260.0,113250.0,0.06435]
[1761745126337,0.24875267,113260.0,113250.0,0.02583]
[1761745126571,0.17660044,113250.0,113230.0,0.81444395]
[1761745126806,0.17661603,113240.0,113230.0,0.33332103]
[1761745127051,0.17661603,113240.0,113230.0,0.0839]
[1761745127290,0.17661603,113240.0,113230.0,0.01955]
[1761745127576,0.20145603,113240.0,113230.0,0.01955]
[1761745127809,0.17663163,113230.0,113220.0,0.00121915]
[1761745128042,0.21980163,113230.0,113220.0,0.00134692]
[1761745128257,0.25737163,113230.0,113220.0,0.00134692]
[1761745129513,0.21980163,113230.0,113220.0,0.00234692]
[1761745129718,0.19496163,113230.0,113220.0,0.02817692]
[1761745129925,0.19596163,113230.0,113220.0,0.02917692]
[1761745130161,0.17763163,113230.0,113220.0,0.06769692]
[1761745130395,0.001,113230.0,113220.0,0.81528608]
[1761745130619,0.17763163,113230.0,113220.0,0.81528608]
[1761745131114,0.17763163,113230.0,113220.0,0.24434415]
[1761745131300,0.17763163,113230.0,113220.0,0.06769692]
[1761745131507,0.2130564,113230.0,113220.0,0.02917692]
[1761745131728,0.2378964,113230.0,113220.0,0.00334692]
[1761745131927,0.2130564,113230.0,113220.0,0.02917692]
[1761745132052,0.17763163,113230.0,113220.0,0.02917692]
[1761745132471,0.17763163,113230.0,113220.0,0.24434415]
[1761745132718,0.17763163,113230.0,113220.0,0.06769692]
[1761745132919,0.17713163,113230.0,113220.0,0.06769692]
[1761745133180,0.0005,113230.0,113220.0,0.90510509]
[1761745134063,0.0005,113230.0,113220.0,0.93553134]
[1761745135323,0.0005,113230.0,113220.0,0.97171362]
[1761745135526,0.0005,113230.0,113220.0,0.36458941]
[1761745135738,0.17713163,113230.0,113220.0,0.32506941]
[1761745136174,0.17713163,113230.0,113220.0,0.36458941]
[1761745136175,0.0005,113230.0,113220.0,0.36458941]
[1761745136582,0.17661909,113240.0,113230.0,0.17663163]
[1761745136798,0.17661909,113240.0,113230.0,0.24098163]
[1761745137023,0.18543111,113250.0,113230.0,0.24098163]
[1761745137247,0.18543111,113250.0,113230.0,0.03852]
[1761745137248,0.17661603,113240.0,113230.0,0.03852]
[1761745137464,0.17663163,113230.0,113220.0,0.87318134]
[1761745137667,0.17661603,113240.0,113220.0,0.90770134]
[1761745137862,0.17661603,113240.0,113230.0,0.02583]
[1761745138082,0.17761603,113240.0,113230.0,0.24198163]
[1761745138302,0.17761603,113240.0,113230.0,0.24298163]
[1761745138509,0.17661603,113240.0,113230.0,0.24198163]
[1761745138745,0.17661603,113240.0,113230.0,0.06435]
[1761745138987,0.17661603,113240.0,113230.0,0.24098163]
[1761745139204,0.21282074,113240.0,113230.0,0.02583]
[1761745139434,0.17661603,113240.0,113230.0,0.04538]
[1761745140389,0.17661603,113240.0,113230.0,0.2220108]
[1761745140669,0.20145603,113240.0,113230.0,0.04538]
[1761745140889,0.17661603,113240.0,113230.0,0.04538]
[1761745141086,0.17661603,113240.0,113220.0,0.03177317]
[1761745141087,0.17663163,113230.0,113220.0,0.03177317]
[1761745141327,0.21548163,113230.0,113220.0,0.03177317]
[1761745141760,0.17663163,113230.0,113220.0,0.2727704]
[1761745142003,0.17761603,113240.0,113220.0,0.2727704]
[1761745142228,0.17761603,113240.0,113230.0,0.0839]
[1761745143089,0.17661603,113240.0,113230.0,0.0839]
[1761745143500,0.19944111,113250.0,113230.0,0.26053163]
[1761745143501,0.18543111,113250.0,113230.0,0.26053163]
[1761745143703,0.17661603,113240.0,113230.0,0.23470163]
[1761745143848,0.17661603,113240.0,113230.0,0.26053163]
[1761745144274,0.001,113240.0,113230.0,0.26153163]
[1761745144469,0.17761603,113240.0,113230.0,0.26153163]
[1761745144869,0.17761603,113240.0,113230.0,0.26253163]
[1761745145183,0.23876074,113240.0,113230.0,0.002]
[1761745145970,0.29531344,113240.0,113230.0,0.002]
[1761745146312,0.63531344,113240.0,113230.0,0.002]
[1761745146542,1.43197442,113240.0,113230.0,0.002]
[1761745146758,0.72513245,113240.0,113230.0,0.002]
[1761745148140,4.63197442,113240.0,113230.0,0.002]
[1761745148345,4.64021085,113240.0,113230.0,0.002]
[1761745148547,0.51663163,113230.0,113220.0,0.03177317]
[1761745148713,4.52382739,113230.0,113220.0,0.03177317]
[1761745148913,4.58032638,113230.0,113220.0,0.03177317]
[1761745149374,3.87348441,113230.0,113220.0,0.03177317]
[1761745149580,4.69050737,113230.0,113220.0,0.03177317]
[1761745150119,4.69450737,113230.0,113220.0,0.03277317]
[1761745150332,4.64650838,113230.0,113220.0,0.03277317]
[1761745150534,4.64650838,113230.0,113220.0,0.03142625]
[1761745150739,0.51667844,113200.0,113190.0,8e-05]
[1761745150938,0.53996345,113200.0,113190.0,8e-05]
[1761745151586,0.53996345,113200.0,113190.0,0.00071609]
[1761745151805,8.501e-05,113200.0,113190.0,0.25390014]
[1761745152006,0.17676345,113200.0,113190.0,0.07720609]
[1761745152178,8.501e-05,113200.0,113190.0,0.25390014]
[1761745153237,8.501e-05,113200.0,113190.0,0.25490014]
[1761745153689,0.00108501,113200.0,113190.0,0.25790014]
[1761745153907,0.00108501,113200.0,113190.0,0.96474211]
[1761745154274,0.00108501,113200.0,113190.0,0.25790014]
[1761745154708,0.20161345,113200.0,113190.0,0.02321609]
[1761745154834,0.29143246,113200.0,113190.0,0.00471609]
[1761745155039,0.29143246,113200.0,113190.0,0.02801609]
[1761745155240,0.17776345,113200.0,113190.0,0.23940014]
[1761745156546,0.17776345,113200.0,113190.0,0.06270609]
[1761745156746,0.17776345,113200.0,113190.0,0.23940014]
[1761745157155,0.00108501,113200.0,113190.0,0.23940014]
[1761745157502,0.17776345,113200.0,113190.0,0.23940014]
[1761745158465,0.2132061,113200.0,113190.0,0.02801609]
[1761745158665,0.2370561,113200.0,113190.0,0.00471609]
[1761745159421,0.2370561,113200.0,113190.0,0.02801609]
[1761745159857,0.17776345,113200.0,113190.0,0.23940014]
[1761745160792,0.20161345,113200.0,113190.0,0.00471609]
[1761745161219,0.23896345,113200.0,113190.0,0.00471609]
[1761745161442,1.37562443,113200.0,113190.0,0.00471609]
[1761745161855,0.66878246,113200.0,113190.0,0.00471609]
[1761745162068,1.46544344,113200.0,113190.0,0.00471609]
[1761745162289,4.46544344,113200.0,113190.0,0.00471609]
[1761745163062,4.46544344,113200.0,113190.0,0.00371609]
[1761745163273,4.46444344,113200.0,113190.0,0.00171609]
[1761745163637,4.66544344,113200.0,113190.0,0.00271609]
[1761745163845,4.66544344,113200.0,113190.0,0.00071609]
[1761745164058,4.66444344,113200.0,113190.0,0.00071609]
[1761745164265,4.67044344,113200.0,113190.0,0.00171609]
[1761745164670,4.68936844,113200.0,113190.0,0.00171609]
[1761745165302,3.78252647,113200.0,113190.0,0.00171609]
[1761745165943,3.76360147,113200.0,113190.0,0.00171609]
[1761745166329,3.72625147,113200.0,113190.0,0.00171609]
[1761745166532,3.72625147,113200.0,113190.0,0.02501609]
[1761745166775,3.72625147,113200.0,113190.0,0.00171609]
[1761745166994,0.18276345,113200.0,113190.0,0.02501609]
[1761745167285,0.18276345,113200.0,113190.0,0.05970609]
[1761745167711,0.17676345,113200.0,113190.0,0.02401609]
[1761745167926,0.17676345,113200.0,113190.0,0.05870609]
[1761745168148,0.17776345,113200.0,113190.0,0.06070609]
[1761745168354,0.2139451,113200.0,113190.0,0.06070609]
[1761745168779,0.17776345,113200.0,113190.0,0.06070609]
[1761745169426,0.17776345,113200.0,113190.0,0.06170609]
[1761745170207,0.00108501,113200.0,113190.0,0.96291151]
[1761745170437,0.00108501,113200.0,113190.0,0.23840014]
[1761745171281,0.00108501,113200.0,113190.0,0.94524211]
[1761745171488,0.00108501,113200.0,113190.0,0.32821915]
[1761745172349,0.00108501,113200.0,113190.0,1.03506112]
[1761745172705,0.00108501,113200.0,113190.0,1.4112434]
[1761745173525,0.17776345,113200.0,113190.0,0.06070609]
[1761745173699,0.21320613,113200.0,113190.0,0.23740014]
[1761745174073,0.23605613,113200.0,113190.0,0.02501609]
[1761745174210,0.21220613,113200.0,113190.0,0.05970609]
[1761745174451,0.21220613,113200.0,113190.0,0.02501609]
[1761745174694,0.21220613,113200.0,113190.0,0.05970609]
[1761745174904,0.17676345,113200.0,113190.0,0.05970609]
[1761745175211,0.17776345,113200.0,113190.0,0.06470609]
[1761745175420,0.17676345,113200.0,113190.0,0.05970609]
[1761745175617,0.17676345,113200.0,113190.0,0.00071609]
[1761745175618,0.54061345,113200.0,113190.0,0.00071609]
[1761745175892,4.39459601,113200.0,113190.0,0.00471609]
[1761745176342,4.48441502,113200.0,113190.0,0.00471609]
[1761745176478,4.48441502,113200.0,113190.0,0.00371609]
[1761745176692,0.56058503,113200.0,113190.0,0.02701609]
[1761745177062,0.55958503,113200.0,113190.0,0.00071609]
[1761745177267,0.59440503,113200.0,113190.0,0.00071609]
[1761745177631,0.56258503,113200.0,113190.0,0.00171609]
[1761745177774,0.56258503,113200.0,113190.0,0.02599609]
[1761745178389,0.17976345,113200.0,113190.0,0.05962609]
[1761745179691,0.17976345,113200.0,113190.0,0.23632014]
[1761745180115,0.17976345,113200.0,113190.0,0.05962609]
[1761745180323,0.17976345,113200.0,113190.0,0.23632014]
[1761745182300,0.17976345,113200.0,113190.0,0.05962609]
[1761745182509,0.23904613,113200.0,113190.0,0.02599609]
[1761745182720,0.27386613,113200.0,113190.0,0.00171609]
[1761745182942,0.9807081,113200.0,113190.0,0.00171609]
[1761745183147,0.27386613,113200.0,113190.0,0.00171609]
[1761745185362,1.3207081,113200.0,113190.0,0.00171609]
[1761745185565,4.42950848,113200.0,113190.0,0.00171609]
[1761745185811,4.45312585,113200.0,113190.0,0.00171609]
[1761745186025,4.45312585,113200.0,113180.0,0.004]
[1761745186026,3.71669405,113190.0,113180.0,0.004]
[1761745186346,4.70502068,113190.0,113180.0,0.004]
[1761745186544,4.71352068,113190.0,113180.0,0.00421207]
[1761745187132,4.00667871,113190.0,113180.0,0.00421207]
[1761745187332,4.51352068,113190.0,113180.0,0.00421207]
[1761745188159,3.80667871,113190.0,113180.0,0.00421207]
[1761745188358,3.80666677,113190.0,113180.0,0.00421207]
[1761745188702,4.51750874,113190.0,113180.0,0.00521207]
[1761745188837,4.42768973,113190.0,113180.0,0.00521207]
[1761745189047,3.72084776,113190.0,113180.0,0.00521207]
[1761745189239,3.71261249,113190.0,113180.0,0.00521207]
[1761745189865,0.66929249,113190.0,113180.0,0.00521207]
[1761745190094,0.66929249,113190.0,113180.0,0.02949207]
[1761745190568,0.66929249,113190.0,113180.0,0.00521207]
[1761745191993,1.37613446,113190.0,113180.0,0.00521207]
[1761745192198,0.64565249,113190.0,113180.0,0.06312207]
[1761745192532,0.52069405,113190.0,113180.0,0.06312207]
[1761745192732,0.18069405,113190.0,113180.0,0.06312207]
[1761745193338,0.18069405,113190.0,113180.0,0.23983173]
[1761745194290,0.17669405,113190.0,113180.0,0.24283173]
[1761745194742,0.17869405,113190.0,113180.0,0.24383173]
[1761745194974,0.2142398,113190.0,113180.0,0.24383173]
[1761745195199,0.2142398,113190.0,113180.0,0.06712207]
[1761745196340,0.2142398,113190.0,113180.0,0.24383173]
[1761745197397,0.2142398,113190.0,113180.0,0.06712207]
[1761745197603,0.2142398,113190.0,113180.0,0.03349207]
[1761745197807,0.2540498,113190.0,113180.0,0.03349207]
[1761745198010,0.2540498,113190.0,113180.0,0.03749207]
[1761745198422,0.2142398,113190.0,113180.0,0.07112207]
[1761745198831,0.2540498,113190.0,113180.0,0.03749207]
[1761745199036,0.2540498,113190.0,113180.0,0.01321207]
[1761745199682,0.6288698,113190.0,113180.0,0.01321207]
[1761745200373,0.51869405,113190.0,113180.0,0.07112207]
[1761745201208,0.002,113190.0,113180.0,0.26550269]